[Event "Titled Tuesday Blitz July 18 Late 2023"]
[White "Goffredo_Fofi"]
[Black "Luong Phuong Hanh"]
[BlackFideId "12401013"]
[WhiteElo "2523"]
[BlackElo "2401"]
[Result "1-0"]
[Round "6"]
[TimeControl "180+2"]
[Date "2023.07.18"]
[WhiteClock "0:00:22"]
[BlackClock "0:01:03"]
[Board "102"]

1. d4 {[%clk 0:03:00]}  Nf6 {[%clk 0:02:53]} 2. c3 {[%clk 0:03:00]}  d5 {[%clk 0:02:52]} 3. Bg5 {[%clk 0:03:01]}  e6 {[%clk 0:02:52]} 4. Nd2 {[%clk 0:03:00]}  Be7 {[%clk 0:02:52]} 5. e3 {[%clk 0:03:01]}  O-O {[%clk 0:02:52]} 6. Bd3 {[%clk 0:03:01]}  h6 {[%clk 0:02:52]} 7. Bh4 {[%clk 0:02:59]}  c5 {[%clk 0:02:53]} 8. f4 {[%clk 0:02:58]}  Nc6 {[%clk 0:02:52]} 9. Ngf3 {[%clk 0:02:57]}  b6 {[%clk 0:02:52]} 10. O-O {[%clk 0:02:50]}  Bb7 {[%clk 0:02:45]} 11. Bxf6 {[%clk 0:02:49]}  Bxf6 {[%clk 0:02:45]} 12. Ne5 {[%clk 0:02:50]}  Rc8 {[%clk 0:02:42]} 13. Rf3 {[%clk 0:02:46]}  Nxe5 {[%clk 0:02:36]} 14. fxe5 {[%clk 0:02:45]}  Bg5 {[%clk 0:02:37]} 15. Rh3 {[%clk 0:02:36]}  f5 {[%clk 0:02:27]} 16. exf6 {[%clk 0:02:20]}  Qxf6 {[%clk 0:02:26]} 17. Qe2 {[%clk 0:02:16]}  e5 {[%clk 0:02:18]} 18. Rf1 {[%clk 0:02:04]}  Qe7 {[%clk 0:02:18]} 19. Bf5 {[%clk 0:01:37]}  exd4 {[%clk 0:02:10]} 20. Bxc8 {[%clk 0:01:34]}  Rxf1+ {[%clk 0:02:09]} 21. Nxf1 {[%clk 0:01:35]}  Bxc8 {[%clk 0:02:08]} 22. Rg3 {[%clk 0:01:25]}  dxe3 {[%clk 0:01:51]} 23. Nxe3 {[%clk 0:01:17]}  d4 {[%clk 0:01:50]} 24. cxd4 {[%clk 0:01:15]}  cxd4 {[%clk 0:01:46]} 25. Qc4+ {[%clk 0:01:13]}  Be6 {[%clk 0:01:47]} 26. Qxd4 {[%clk 0:01:12]}  Bxa2 {[%clk 0:01:43]} 27. Rf3 {[%clk 0:00:46]}  Bf7 {[%clk 0:01:38]} 28. Nf5 {[%clk 0:00:29]}  Qf6 {[%clk 0:01:11]} 29. Qxf6 {[%clk 0:00:29]}  Bxf6 {[%clk 0:01:08]} 30. Nxh6+ {[%clk 0:00:28]}  Kf8 {[%clk 0:01:04]} 31. Nxf7 {[%clk 0:00:28]}  Kxf7 {[%clk 0:01:05]} 32. Kf2 {[%clk 0:00:27]}  Ke6 {[%clk 0:01:06]} 33. b3 {[%clk 0:00:25]}  b5 {[%clk 0:01:05]} 34. Ke2 {[%clk 0:00:26]}  a5 {[%clk 0:01:05]} 35. Kd3 {[%clk 0:00:25]}  Kd5 {[%clk 0:01:04]} 36. Rf5+ {[%clk 0:00:24]}  Kc6 {[%clk 0:01:03]} 37. g4 {[%clk 0:00:22]} 1-0


[Site "https://www.chess.com"]

[Event "Titled Tuesday Blitz July 18 Late 2023"]
[White "Hoffmann, Asa"]
[Black "Ismayil, Malak"]
[WhiteFideId "2001470"]
[BlackFideId "13412604"]
[WhiteElo "2385"]
[BlackElo "2508"]
[Result "1/2-1/2"]
[Round "6"]
[TimeControl "180+2"]
[Date "2023.07.18"]
[WhiteClock "0:00:10"]
[BlackClock "0:00:23"]
[Board "104"]

1. d4 {[%clk 0:02:58]}  Nf6 {[%clk 0:02:57]} 2. Bg5 {[%clk 0:02:55]}  e6 {[%clk 0:02:57]} 3. Nd2 {[%clk 0:02:54]}  d5 {[%clk 0:02:58]} 4. e3 {[%clk 0:02:54]}  Be7 {[%clk 0:02:58]} 5. Bd3 {[%clk 0:02:54]}  O-O {[%clk 0:02:59]} 6. f4 {[%clk 0:02:54]}  c5 {[%clk 0:02:59]} 7. c3 {[%clk 0:02:54]}  b6 {[%clk 0:02:58]} 8. Ngf3 {[%clk 0:02:53]}  Ba6 {[%clk 0:02:58]} 9. Bxa6 {[%clk 0:02:51]}  Nxa6 {[%clk 0:02:59]} 10. Qe2 {[%clk 0:02:51]}  Nc7 {[%clk 0:02:58]} 11. Ne5 {[%clk 0:02:51]}  h6 {[%clk 0:02:58]} 12. Bh4 {[%clk 0:02:50]}  Qd6 {[%clk 0:02:51]} 13. O-O {[%clk 0:02:49]}  Nd7 {[%clk 0:02:49]} 14. Bg3 {[%clk 0:02:38]}  f5 {[%clk 0:02:45]} 15. Kh1 {[%clk 0:02:23]}  Nf6 {[%clk 0:02:40]} 16. Bh4 {[%clk 0:02:19]}  Rfe8 {[%clk 0:02:37]} 17. Bxf6 {[%clk 0:02:18]}  Bxf6 {[%clk 0:02:37]} 18. g4 {[%clk 0:02:17]}  fxg4 {[%clk 0:02:32]} 19. Qxg4 {[%clk 0:02:17]}  Bxe5 {[%clk 0:02:31]} 20. fxe5 {[%clk 0:02:16]}  Qe7 {[%clk 0:02:31]} 21. Rg1 {[%clk 0:02:16]}  Rf8 {[%clk 0:02:27]} 22. Rg2 {[%clk 0:02:13]}  Rf7 {[%clk 0:02:22]} 23. Rag1 {[%clk 0:02:12]}  Raf8 {[%clk 0:02:20]} 24. a3 {[%clk 0:02:10]}  Ne8 {[%clk 0:02:17]} 25. e4 {[%clk 0:02:09]}  Rf4 {[%clk 0:02:13]} 26. Qe2 {[%clk 0:02:08]}  dxe4 {[%clk 0:02:04]} 27. Nxe4 {[%clk 0:02:05]}  Qh4 {[%clk 0:02:04]} 28. Nf6+ {[%clk 0:01:47]}  R8xf6 {[%clk 0:01:37]} 29. exf6 {[%clk 0:01:46]}  Qxf6 {[%clk 0:01:37]} 30. dxc5 {[%clk 0:01:42]}  bxc5 {[%clk 0:01:38]} 31. Qb5 {[%clk 0:01:34]}  Qf8 {[%clk 0:01:36]} 32. Qa6 {[%clk 0:01:26]}  Rf6 {[%clk 0:01:34]} 33. Qxa7 {[%clk 0:01:25]}  Kh8 {[%clk 0:01:34]} 34. Qd7 {[%clk 0:01:17]}  e5 {[%clk 0:01:23]} 35. Qd5 {[%clk 0:01:13]}  Rf5 {[%clk 0:01:21]} 36. a4 {[%clk 0:01:08]}  Rf4 {[%clk 0:01:01]} 37. Qxe5 {[%clk 0:01:06]}  Rxa4 {[%clk 0:00:59]} 38. Re1 {[%clk 0:00:46]}  Nf6 {[%clk 0:00:56]} 39. Qe7 {[%clk 0:00:45]}  Qg8 {[%clk 0:00:51]} 40. Reg1 {[%clk 0:00:41]}  Ne8 {[%clk 0:00:47]} 41. Qxc5 {[%clk 0:00:39]}  Rf4 {[%clk 0:00:41]} 42. Qe5 {[%clk 0:00:37]}  Qf7 {[%clk 0:00:41]} 43. Re2 {[%clk 0:00:29]}  Nc7 {[%clk 0:00:41]} 44. Qe7 {[%clk 0:00:28]}  Nd5 {[%clk 0:00:38]} 45. Qxf7 {[%clk 0:00:27]}  Rxf7 {[%clk 0:00:39]} 46. Rd2 {[%clk 0:00:27]}  Ne3 {[%clk 0:00:37]} 47. Rd3 {[%clk 0:00:25]}  Nc4 {[%clk 0:00:34]} 48. b3 {[%clk 0:00:24]}  Ne5 {[%clk 0:00:34]} 49. Re3 {[%clk 0:00:24]}  Rf5 {[%clk 0:00:32]} 50. Rge1 {[%clk 0:00:24]}  Ng4 {[%clk 0:00:31]} 51. R3e2 {[%clk 0:00:22]}  Rf3 {[%clk 0:00:30]} 52. Rc2 {[%clk 0:00:20]}  Ne3 {[%clk 0:00:29]} 53. Rxe3 {[%clk 0:00:19]}  Rxe3 {[%clk 0:00:28]} 54. b4 {[%clk 0:00:19]}  g5 {[%clk 0:00:21]} 55. b5 {[%clk 0:00:19]}  Kg7 {[%clk 0:00:20]} 56. b6 {[%clk 0:00:19]}  Re1+ {[%clk 0:00:20]} 57. Kg2 {[%clk 0:00:19]}  Rb1 {[%clk 0:00:21]} 58. c4 {[%clk 0:00:14]}  Rxb6 {[%clk 0:00:21]} 59. c5 {[%clk 0:00:14]}  Rc6 {[%clk 0:00:22]} 60. Kf3 {[%clk 0:00:14]}  Kf6 {[%clk 0:00:20]} 61. Ke4 {[%clk 0:00:14]}  Ke6 {[%clk 0:00:21]} 62. Kd4 {[%clk 0:00:15]}  Rc8 {[%clk 0:00:21]} 63. Re2+ {[%clk 0:00:14]}  Kf5 {[%clk 0:00:20]} 64. Kd5 {[%clk 0:00:14]}  h5 {[%clk 0:00:19]} 65. Rf2+ {[%clk 0:00:13]}  Kg4 {[%clk 0:00:19]} 66. c6 {[%clk 0:00:13]}  Kh3 {[%clk 0:00:19]} 67. Kd6 {[%clk 0:00:12]}  g4 {[%clk 0:00:19]} 68. Kd7 {[%clk 0:00:12]}  Rg8 {[%clk 0:00:20]} 69. c7 {[%clk 0:00:12]}  h4 {[%clk 0:00:20]} 70. c8=Q {[%clk 0:00:10]}  Rxc8 {[%clk 0:00:20]} 71. Kxc8 {[%clk 0:00:10]}  g3 {[%clk 0:00:21]} 72. hxg3 {[%clk 0:00:10]}  hxg3 {[%clk 0:00:22]} 73. Rf3 {[%clk 0:00:10]}  Kh2 {[%clk 0:00:22]} 74. Rxg3 {[%clk 0:00:10]}  Kxg3 {[%clk 0:00:23]} 1/2-1/2


[Site "https://www.chess.com"]

[Event "Titled Tuesday Blitz July 18 Late 2023"]
[White "Lalanne, Pablo"]
[Black "Seletsky, Grigory"]
[WhiteFideId "112151"]
[BlackFideId "14112191"]
[WhiteElo "2372"]
[BlackElo "2495"]
[Result "1-0"]
[Round "6"]
[TimeControl "180+2"]
[Date "2023.07.18"]
[WhiteClock "0:00:21"]
[BlackClock "0:01:08"]
[Board "106"]

1. e4 {[%clk 0:03:00]}  c5 {[%clk 0:02:43]} 2. Nf3 {[%clk 0:02:59]}  e6 {[%clk 0:02:43]} 3. d4 {[%clk 0:02:59]}  cxd4 {[%clk 0:02:44]} 4. Nxd4 {[%clk 0:03:00]}  a6 {[%clk 0:02:43]} 5. Bd3 {[%clk 0:03:00]}  Qc7 {[%clk 0:02:43]} 6. O-O {[%clk 0:02:59]}  b5 {[%clk 0:02:43]} 7. Be3 {[%clk 0:02:53]}  Bb7 {[%clk 0:02:43]} 8. Nd2 {[%clk 0:02:52]}  Nf6 {[%clk 0:02:43]} 9. a4 {[%clk 0:02:49]}  b4 {[%clk 0:02:37]} 10. a5 {[%clk 0:02:48]}  d5 {[%clk 0:02:36]} 11. exd5 {[%clk 0:02:42]}  Nxd5 {[%clk 0:02:36]} 12. Qe2 {[%clk 0:02:30]}  Bd6 {[%clk 0:02:28]} 13. h3 {[%clk 0:02:22]}  Nf4 {[%clk 0:02:24]} 14. Bxf4 {[%clk 0:02:20]}  Bxf4 {[%clk 0:02:24]} 15. Nc4 {[%clk 0:02:07]}  O-O {[%clk 0:02:18]} 16. Nb6 {[%clk 0:02:04]}  Ra7 {[%clk 0:02:18]} 17. Rad1 {[%clk 0:01:47]}  g6 {[%clk 0:02:17]} 18. Rfe1 {[%clk 0:01:43]}  Nc6 {[%clk 0:02:15]} 19. Nxc6 {[%clk 0:01:33]}  Qxc6 {[%clk 0:02:12]} 20. Be4 {[%clk 0:01:30]}  Qxe4 {[%clk 0:02:10]} 21. Qxe4 {[%clk 0:01:31]}  Bxe4 {[%clk 0:02:10]} 22. Rxe4 {[%clk 0:01:32]}  Bg5 {[%clk 0:01:55]} 23. Rxb4 {[%clk 0:01:31]}  Rc7 {[%clk 0:01:55]} 24. c3 {[%clk 0:01:30]}  Rb8 {[%clk 0:01:53]} 25. f4 {[%clk 0:01:18]}  Be7 {[%clk 0:01:50]} 26. Rc4 {[%clk 0:01:17]}  Rbb7 {[%clk 0:01:43]} 27. Rxc7 {[%clk 0:01:08]}  Rxc7 {[%clk 0:01:42]} 28. Kf1 {[%clk 0:01:03]}  Rc5 {[%clk 0:01:36]} 29. Rd7 {[%clk 0:01:00]}  Bf6 {[%clk 0:01:34]} 30. b4 {[%clk 0:00:48]}  Rxc3 {[%clk 0:01:30]} 31. Ra7 {[%clk 0:00:48]}  Rb3 {[%clk 0:01:28]} 32. Rxa6 {[%clk 0:00:47]}  Rxb4 {[%clk 0:01:28]} 33. Ra8+ {[%clk 0:00:46]}  Kg7 {[%clk 0:01:26]} 34. Nd7 {[%clk 0:00:46]}  Rxf4+ {[%clk 0:01:26]} 35. Ke2 {[%clk 0:00:45]}  Ra4 {[%clk 0:01:26]} 36. a6 {[%clk 0:00:42]}  h5 {[%clk 0:01:24]} 37. Nc5 {[%clk 0:00:37]}  Ra5 {[%clk 0:01:20]} 38. Nb7 {[%clk 0:00:32]}  Ra2+ {[%clk 0:01:19]} 39. Kf3 {[%clk 0:00:32]}  Rxg2 {[%clk 0:01:18]} 40. Kxg2 {[%clk 0:00:31]}  Bd4 {[%clk 0:01:15]} 41. Nd6 {[%clk 0:00:28]}  f5 {[%clk 0:01:14]} 42. Nb5 {[%clk 0:00:27]}  Bc5 {[%clk 0:01:13]} 43. Rc8 {[%clk 0:00:27]}  Be3 {[%clk 0:01:12]} 44. Kf3 {[%clk 0:00:25]}  f4 {[%clk 0:01:11]} 45. Rc3 {[%clk 0:00:22]}  Kf6 {[%clk 0:01:08]} 46. Rxe3 {[%clk 0:00:21]} 1-0


[Site "https://www.chess.com"]

[Event "Titled Tuesday Blitz July 18 Late 2023"]
[White "Ansh M Shah"]
[Black "Merino Garcia, Rafael II"]
[WhiteFideId "25033379"]
[BlackFideId "2209128"]
[WhiteElo "2495"]
[BlackElo "2369"]
[Result "1-0"]
[Round "6"]
[TimeControl "180+2"]
[Date "2023.07.18"]
[WhiteClock "0:01:23"]
[BlackClock "0:00:33"]
[Board "107"]

1. d4 {[%clk 0:03:00]}  Nf6 {[%clk 0:02:58]} 2. c4 {[%clk 0:03:00]}  e6 {[%clk 0:02:59]} 3. Nc3 {[%clk 0:03:00]}  Bb4 {[%clk 0:02:58]} 4. e3 {[%clk 0:02:57]}  b6 {[%clk 0:02:58]} 5. Ne2 {[%clk 0:02:57]}  Bb7 {[%clk 0:02:58]} 6. a3 {[%clk 0:02:58]}  Bxc3+ {[%clk 0:02:58]} 7. Nxc3 {[%clk 0:02:59]}  Ne4 {[%clk 0:02:57]} 8. Bd2 {[%clk 0:02:58]}  O-O {[%clk 0:02:52]} 9. Rc1 {[%clk 0:02:58]}  f5 {[%clk 0:02:50]} 10. Bd3 {[%clk 0:02:54]}  Nxd2 {[%clk 0:02:46]} 11. Qxd2 {[%clk 0:02:53]}  Bxg2 {[%clk 0:02:46]} 12. Rg1 {[%clk 0:02:54]}  Bb7 {[%clk 0:02:46]} 13. d5 {[%clk 0:02:52]}  e5 {[%clk 0:02:43]} 14. Kd1 {[%clk 0:02:44]}  d6 {[%clk 0:02:38]} 15. Kc2 {[%clk 0:02:44]}  Nd7 {[%clk 0:02:38]} 16. f4 {[%clk 0:02:33]}  Qe7 {[%clk 0:02:19]} 17. Rg5 {[%clk 0:02:32]}  e4 {[%clk 0:02:11]} 18. Bf1 {[%clk 0:02:26]}  h6 {[%clk 0:02:08]} 19. Rg3 {[%clk 0:02:26]}  c6 {[%clk 0:02:03]} 20. Kb1 {[%clk 0:02:25]}  c5 {[%clk 0:02:01]} 21. Bh3 {[%clk 0:02:24]}  Kh8 {[%clk 0:01:52]} 22. Rcg1 {[%clk 0:02:23]}  Rf7 {[%clk 0:01:52]} 23. Nb5 {[%clk 0:02:17]}  Nf8 {[%clk 0:01:47]} 24. Bxf5 {[%clk 0:02:04]}  Rxf5 {[%clk 0:01:43]} 25. Rxg7 {[%clk 0:02:05]}  Qxg7 {[%clk 0:01:44]} 26. Rxg7 {[%clk 0:02:05]}  Kxg7 {[%clk 0:01:44]} 27. Nxd6 {[%clk 0:02:04]}  Rf6 {[%clk 0:01:35]} 28. Nxe4 {[%clk 0:01:47]}  Rg6 {[%clk 0:01:31]} 29. f5 {[%clk 0:01:47]}  Rg1+ {[%clk 0:01:29]} 30. Ka2 {[%clk 0:01:48]}  Nd7 {[%clk 0:01:21]} 31. Qf2 {[%clk 0:01:45]}  Rg4 {[%clk 0:01:15]} 32. f6+ {[%clk 0:01:43]}  Kf8 {[%clk 0:01:15]} 33. Nd6 {[%clk 0:01:38]}  Ba6 {[%clk 0:01:11]} 34. e4 {[%clk 0:01:38]}  Ne5 {[%clk 0:01:05]} 35. Qf5 {[%clk 0:01:35]}  Rg5 {[%clk 0:01:05]} 36. Qe6 {[%clk 0:01:29]}  Bxc4+ {[%clk 0:00:40]} 37. Nxc4 {[%clk 0:01:21]}  Nxc4 {[%clk 0:00:40]} 38. Qe7+ {[%clk 0:01:22]}  Kg8 {[%clk 0:00:33]} 39. f7+ {[%clk 0:01:23]} 1-0


[Site "https://www.chess.com"]

[Event "Titled Tuesday Blitz July 18 Late 2023"]
[White "Yeritsyan, Hayk"]
[Black "Storn, Justin"]
[WhiteFideId "13307320"]
[BlackFideId "30922720"]
[WhiteElo "2494"]
[BlackElo "2364"]
[Result "0-1"]
[Round "6"]
[TimeControl "180+2"]
[Date "2023.07.18"]
[WhiteClock "0:00:14"]
[BlackClock "0:00:10"]
[Board "108"]

1. d4 {[%clk 0:03:00]}  Nf6 {[%clk 0:02:59]} 2. Nf3 {[%clk 0:03:01]}  c5 {[%clk 0:02:56]} 3. e3 {[%clk 0:03:01]}  d5 {[%clk 0:02:55]} 4. c3 {[%clk 0:02:59]}  b6 {[%clk 0:02:54]} 5. Bd3 {[%clk 0:02:55]}  g6 {[%clk 0:02:52]} 6. Nbd2 {[%clk 0:02:54]}  Bg7 {[%clk 0:02:52]} 7. Ne5 {[%clk 0:02:55]}  O-O {[%clk 0:02:51]} 8. O-O {[%clk 0:02:54]}  Ba6 {[%clk 0:02:46]} 9. Nc6 {[%clk 0:02:52]}  Qc7 {[%clk 0:02:39]} 10. Bxa6 {[%clk 0:02:45]}  Nxa6 {[%clk 0:02:37]} 11. Ne5 {[%clk 0:02:45]}  Nd7 {[%clk 0:02:35]} 12. Nxd7 {[%clk 0:02:44]}  Qxd7 {[%clk 0:02:36]} 13. Qe2 {[%clk 0:02:43]}  Nb8 {[%clk 0:02:32]} 14. Nf3 {[%clk 0:02:42]}  Nc6 {[%clk 0:02:32]} 15. dxc5 {[%clk 0:02:42]}  bxc5 {[%clk 0:02:32]} 16. e4 {[%clk 0:02:43]}  d4 {[%clk 0:02:28]} 17. cxd4 {[%clk 0:02:43]}  cxd4 {[%clk 0:02:08]} 18. Rd1 {[%clk 0:02:32]}  Rab8 {[%clk 0:02:03]} 19. Ne1 {[%clk 0:02:29]}  Rfc8 {[%clk 0:01:32]} 20. Nd3 {[%clk 0:02:28]}  Nb4 {[%clk 0:01:30]} 21. Nxb4 {[%clk 0:01:46]}  Rxb4 {[%clk 0:01:30]} 22. Rd3 {[%clk 0:01:41]}  Rbc4 {[%clk 0:01:21]} 23. Qd1 {[%clk 0:01:33]}  Rc2 {[%clk 0:01:13]} 24. b3 {[%clk 0:01:26]}  Qc6 {[%clk 0:01:08]} 25. Ba3 {[%clk 0:00:41]}  Qxe4 {[%clk 0:01:06]} 26. Qf3 {[%clk 0:00:24]}  f5 {[%clk 0:00:41]} 27. h3 {[%clk 0:00:13]}  e5 {[%clk 0:00:36]} 28. Bb4 {[%clk 0:00:10]}  Qxf3 {[%clk 0:00:33]} 29. gxf3 {[%clk 0:00:10]}  e4 {[%clk 0:00:33]} 30. fxe4 {[%clk 0:00:10]}  fxe4 {[%clk 0:00:34]} 31. Rd2 {[%clk 0:00:10]}  d3 {[%clk 0:00:35]} 32. Rad1 {[%clk 0:00:08]}  Bh6 {[%clk 0:00:30]} 33. Kf1 {[%clk 0:00:06]}  Bxd2 {[%clk 0:00:29]} 34. Bxd2 {[%clk 0:00:07]}  Rxa2 {[%clk 0:00:27]} 35. Be3 {[%clk 0:00:08]}  Rc3 {[%clk 0:00:16]} 36. Rb1 {[%clk 0:00:06]}  Rc7 {[%clk 0:00:12]} 37. Kg2 {[%clk 0:00:05]}  Rb7 {[%clk 0:00:10]} 38. Kg3 {[%clk 0:00:05]}  Rd7 {[%clk 0:00:10]} 39. Kf4 {[%clk 0:00:05]}  d2 {[%clk 0:00:10]} 40. Rd1 {[%clk 0:00:05]}  Rb2 {[%clk 0:00:10]} 41. Kxe4 {[%clk 0:00:04]}  Rxb3 {[%clk 0:00:10]} 42. Kf3 {[%clk 0:00:02]}  Rb4 {[%clk 0:00:10]} 43. Ke2 {[%clk 0:00:02]}  Rb2 {[%clk 0:00:10]} 44. Bxd2 {[%clk 0:00:02]}  Rdxd2+ {[%clk 0:00:10]} 45. Rxd2 {[%clk 0:00:02]}  Rxd2+ {[%clk 0:00:11]} 46. Kxd2 {[%clk 0:00:03]}  Kf7 {[%clk 0:00:11]} 47. Kc3 {[%clk 0:00:04]}  Kf6 {[%clk 0:00:11]} 48. Kd4 {[%clk 0:00:05]}  Kf5 {[%clk 0:00:12]} 49. Ke3 {[%clk 0:00:05]}  Ke5 {[%clk 0:00:12]} 50. f3 {[%clk 0:00:06]}  Kf5 {[%clk 0:00:13]} 51. f4 {[%clk 0:00:07]}  a5 {[%clk 0:00:13]} 52. Kf3 {[%clk 0:00:07]}  a4 {[%clk 0:00:13]} 53. h4 {[%clk 0:00:08]}  a3 {[%clk 0:00:13]} 54. h5 {[%clk 0:00:09]}  gxh5 {[%clk 0:00:13]} 55. Kg3 {[%clk 0:00:09]}  h4+ {[%clk 0:00:12]} 56. Kxh4 {[%clk 0:00:10]}  Kxf4 {[%clk 0:00:12]} 57. Kh5 {[%clk 0:00:11]}  a2 {[%clk 0:00:12]} 58. Kh6 {[%clk 0:00:12]}  a1=Q {[%clk 0:00:13]} 59. Kxh7 {[%clk 0:00:13]}  Qf6 {[%clk 0:00:10]} 60. Kg8 {[%clk 0:00:12]}  Qe7 {[%clk 0:00:10]} 61. Kh8 {[%clk 0:00:12]}  Kg5 {[%clk 0:00:11]} 62. Kg8 {[%clk 0:00:13]}  Kg6 {[%clk 0:00:11]} 63. Kh8 {[%clk 0:00:14]}  Qg7# {[%clk 0:00:10]} 0-1


[Site "https://www.chess.com"]

[Event "Titled Tuesday Blitz July 18 Late 2023"]
[White "Kaplan, Avi Harrison"]
[Black "ExchangeAB"]
[WhiteFideId "30934559"]
[WhiteElo "2493"]
[BlackElo "2360"]
[Result "0-1"]
[Round "6"]
[TimeControl "180+2"]
[Date "2023.07.18"]
[WhiteClock "0:00:05"]
[BlackClock "0:00:19"]
[Board "109"]

1. g3 {[%clk 0:03:00]}  c6 {[%clk 0:02:59]} 2. Bg2 {[%clk 0:03:01]}  d5 {[%clk 0:03:00]} 3. c4 {[%clk 0:03:00]}  Nf6 {[%clk 0:03:00]} 4. Nf3 {[%clk 0:02:59]}  dxc4 {[%clk 0:03:00]} 5. O-O {[%clk 0:02:59]}  b5 {[%clk 0:02:56]} 6. a4 {[%clk 0:02:57]}  Qb6 {[%clk 0:02:46]} 7. b3 {[%clk 0:02:35]}  e6 {[%clk 0:02:38]} 8. axb5 {[%clk 0:02:33]}  cxb5 {[%clk 0:02:34]} 9. bxc4 {[%clk 0:02:32]}  bxc4 {[%clk 0:02:24]} 10. Qa4+ {[%clk 0:02:27]}  Nbd7 {[%clk 0:02:22]} 11. Qxc4 {[%clk 0:02:25]}  Bb7 {[%clk 0:02:20]} 12. Nc3 {[%clk 0:02:20]}  Be7 {[%clk 0:02:12]} 13. Rb1 {[%clk 0:02:17]}  Qa6 {[%clk 0:02:02]} 14. Qc7 {[%clk 0:01:50]}  Nc5 {[%clk 0:01:43]} 15. Ne5 {[%clk 0:01:26]}  Bxg2 {[%clk 0:01:40]} 16. Kxg2 {[%clk 0:01:13]}  Rc8 {[%clk 0:01:15]} 17. Rb8 {[%clk 0:01:08]}  Rxb8 {[%clk 0:01:10]} 18. Qxb8+ {[%clk 0:01:07]}  Bd8 {[%clk 0:01:10]} 19. Qb4 {[%clk 0:00:40]}  Qb7+ {[%clk 0:01:04]} 20. Qxb7 {[%clk 0:00:36]}  Nxb7 {[%clk 0:01:04]} 21. Ba3 {[%clk 0:00:35]}  Bb6 {[%clk 0:00:57]} 22. Rc1 {[%clk 0:00:30]}  Nd7 {[%clk 0:00:55]} 23. Nxd7 {[%clk 0:00:16]}  Kxd7 {[%clk 0:00:56]} 24. Na4 {[%clk 0:00:17]}  Rc8 {[%clk 0:00:55]} 25. Nxb6+ {[%clk 0:00:16]}  axb6 {[%clk 0:00:55]} 26. Rxc8 {[%clk 0:00:16]}  Kxc8 {[%clk 0:00:56]} 27. Kf3 {[%clk 0:00:16]}  Kd7 {[%clk 0:00:54]} 28. Ke4 {[%clk 0:00:16]}  Nd8 {[%clk 0:00:51]} 29. Kd4 {[%clk 0:00:16]}  Kc6 {[%clk 0:00:46]} 30. Kc3 {[%clk 0:00:13]}  Nb7 {[%clk 0:00:42]} 31. Bf8 {[%clk 0:00:13]}  g6 {[%clk 0:00:42]} 32. d4 {[%clk 0:00:12]}  f5 {[%clk 0:00:41]} 33. e3 {[%clk 0:00:12]}  Kd5 {[%clk 0:00:41]} 34. f3 {[%clk 0:00:10]}  e5 {[%clk 0:00:36]} 35. dxe5 {[%clk 0:00:08]}  Kxe5 {[%clk 0:00:37]} 36. Kb4 {[%clk 0:00:09]}  g5 {[%clk 0:00:31]} 37. Kb5 {[%clk 0:00:09]}  g4 {[%clk 0:00:30]} 38. Bg7+ {[%clk 0:00:07]}  Kd5 {[%clk 0:00:27]} 39. fxg4 {[%clk 0:00:04]}  fxg4 {[%clk 0:00:28]} 40. Kxb6 {[%clk 0:00:03]}  Nd6 {[%clk 0:00:28]} 41. Ka6 {[%clk 0:00:04]}  Ke4 {[%clk 0:00:27]} 42. Kb6 {[%clk 0:00:02]}  Nc4+ {[%clk 0:00:27]} 43. Kc5 {[%clk 0:00:03]}  Nxe3 {[%clk 0:00:28]} 44. Bh6 {[%clk 0:00:02]}  Nf1 {[%clk 0:00:27]} 45. Kd6 {[%clk 0:00:02]}  Kf5 {[%clk 0:00:24]} 46. Ke7 {[%clk 0:00:02]}  Kg6 {[%clk 0:00:24]} 47. Bf4 {[%clk 0:00:03]}  Nxh2 {[%clk 0:00:24]} 48. Ke6 {[%clk 0:00:03]}  h5 {[%clk 0:00:24]} 49. Ke5 {[%clk 0:00:04]}  Nf3+ {[%clk 0:00:24]} 50. Ke4 {[%clk 0:00:04]}  Ne1 {[%clk 0:00:22]} 51. Be3 {[%clk 0:00:03]}  Nc2 {[%clk 0:00:21]} 52. Bf4 {[%clk 0:00:03]}  Nb4 {[%clk 0:00:21]} 53. Kd4 {[%clk 0:00:03]}  Nc6+ {[%clk 0:00:21]} 54. Kd5 {[%clk 0:00:03]}  Nd8 {[%clk 0:00:22]} 55. Ke4 {[%clk 0:00:03]}  Nf7 {[%clk 0:00:22]} 56. Bc7 {[%clk 0:00:03]}  Kf6 {[%clk 0:00:22]} 57. Kf4 {[%clk 0:00:04]}  Kg6 {[%clk 0:00:22]} 58. Ke4 {[%clk 0:00:05]}  Ng5+ {[%clk 0:00:19]} 59. Ke3 {[%clk 0:00:04]}  Kf5 {[%clk 0:00:19]} 60. Bb8 {[%clk 0:00:04]}  Ne6 {[%clk 0:00:19]} 61. Kf2 {[%clk 0:00:04]}  Ng5 {[%clk 0:00:19]} 62. Kg2 {[%clk 0:00:04]}  Ne4 {[%clk 0:00:19]} 63. Bc7 {[%clk 0:00:05]}  Ke6 {[%clk 0:00:19]} 64. Bb8 {[%clk 0:00:05]}  Kd5 {[%clk 0:00:20]} 65. Bf4 {[%clk 0:00:06]}  Kd4 {[%clk 0:00:20]} 66. Bb8 {[%clk 0:00:06]}  Kd3 {[%clk 0:00:21]} 67. Bc7 {[%clk 0:00:06]}  Ke2 {[%clk 0:00:21]} 68. Bb8 {[%clk 0:00:07]}  Nc3 {[%clk 0:00:22]} 69. Bc7 {[%clk 0:00:06]}  Nd5 {[%clk 0:00:22]} 70. Bb8 {[%clk 0:00:06]}  Ne3+ {[%clk 0:00:23]} 71. Kh2 {[%clk 0:00:06]}  Kf3 {[%clk 0:00:23]} 72. Bc7 {[%clk 0:00:05]}  Nf1+ {[%clk 0:00:23]} 73. Kh1 {[%clk 0:00:06]}  Nxg3+ {[%clk 0:00:24]} 74. Kh2 {[%clk 0:00:07]}  Ne4 {[%clk 0:00:24]} 75. Kg1 {[%clk 0:00:07]}  g3 {[%clk 0:00:23]} 76. Kh1 {[%clk 0:00:07]}  h4 {[%clk 0:00:24]} 77. Kg1 {[%clk 0:00:08]}  h3 {[%clk 0:00:24]} 78. Bb6 {[%clk 0:00:07]}  Nf2 {[%clk 0:00:19]} 79. Bxf2 {[%clk 0:00:02]}  gxf2+ {[%clk 0:00:19]} 80. Kh2 {[%clk 0:00:02]}  Ke2 {[%clk 0:00:17]} 81. Kxh3 {[%clk 0:00:01]}  f1=Q+ {[%clk 0:00:17]} 82. Kg3 {[%clk 0:00:02]}  Qf3+ {[%clk 0:00:17]} 83. Kh4 {[%clk 0:00:03]}  Qg2 {[%clk 0:00:17]} 84. Kh5 {[%clk 0:00:03]}  Kf3 {[%clk 0:00:18]} 85. Kh6 {[%clk 0:00:04]}  Kf4 {[%clk 0:00:19]} 86. Kh5 {[%clk 0:00:05]}  Qg5# {[%clk 0:00:19]} 0-1


[Site "https://www.chess.com"]